[Event "44th Chess Olympiad Open 2022"]
[Site "Chennai"]
[Date "2022.08.08"]
[Round "10.27"]
[White "Borisek, Jure"]
[Black "Olson, Hamish"]
[Result "1-0"]
[ECO "C90"]
[WhiteElo "2577"]
[BlackElo "2343"]
[Annotator "TA"]
[PlyCount "65"]
[EventDate "2022.07.29"]
[EventType "team-tourn"]
[EventCountry "IND"]
[SourceTitle "playchess.com"]
[Source "ChessBase"]
[SourceQuality "1"]
[WhiteTeam "Slovenia"]
[BlackTeam "Scotland"]
[WhiteTeamCountry "SLO"]
[BlackTeamCountry "SCO"]
[TimeControl "40/5400+30:1800+30"]

{[%evp 18,65,22,14,26,31,29,24,63,55,87,93,103,82,98,101,95,91,91,92,90,85,84,63,69,53,69,70,83,75,93,104,121,141,171,120,114,101,107,125,394,394,325,354,781,534,622,609,1014,968]} 1. e4 {[%emt 0:00:03]} e5 {[%emt 0:00:09]} 2. Nf3 {[%emt 0:00:06]} Nc6 {[%emt 0:00:07]} 3. Bb5 {[%emt 0:00:06]} a6 {[%emt 0:00:08]} 4. Ba4 {[%emt 0:00:04]} Nf6 {[%emt 0:00:10]} 5. O-O {[%emt 0:00:18]} Be7 {[%emt 0:00:12]} 6. Re1 {[%emt 0:00:14]} b5 {[%emt 0:00:14]} 7. Bb3 {[%emt 0:00:04]} O-O {[%emt 0:00:18]} 8. a4 {[%emt 0:00:09]} b4 {[%emt 0:00:29]} 9. a5 {[%emt 0:00:51] 9.d4 is a critical line.} d6 {[%emt 0:01:59]} 10. c3 {[%emt 0:00:47]} bxc3 {[%emt 0:05:11] C90: Closed Ruy Lopez with 7...d6: Early deviations.} 11. dxc3 {[%emt 0:06:31]} h6 {[%emt 0:07:43] [#]} 12. Nbd2 $146 {[%emt 0:04:09][%cal Bb1d2,Bd2f1,Bf1g3][%mdl 32]} ({Predecessor:} 12. Bc4 Bg4 13. Nbd2 Qc8 14. h3 Bh5 15. Qa4 Nd8 16. Nh4 Ne6 17. Nf5 Bd8 18. Qc6 Nf4 19. Nf1 Kh7 20. Bxf4 exf4 21. e5 Qxf5 22. Rad1 Rb8 23. Bd3 {1-0 (23) Czubak,M (1989)-Langer,R (1807) Germany 2014}) 12... Nh7 {[%emt 0:01:24] White has an edge.} 13. Nf1 {[%emt 0:07:55]} Ng5 {[%emt 0:03:03]} 14. Bd5 {[%emt 0:01:00]} Bd7 {[%emt 0:06:17]} 15. Ng3 {[%emt 0:03:45]} Nxf3+ {[%emt 0:07:19]} 16. Qxf3 {[%emt 0:01:53]} Bg5 {[%emt 0:02:00]} 17. b4 {[%emt 0:00:38]} Bxc1 {[%emt 0:01:56]} 18. Raxc1 {[%emt 0:00:03]} g6 {[%emt 0:01:18]} 19. Qe2 {[%emt 0:11:48]} Kg7 {[%emt 0:02:11]} 20. Rf1 {[%emt 0:01:14] 0x0.00198b1c3a0bdp-1022s more active pieces.} Qb8 {[%emt 0:12:39]} 21. Kh1 {[%emt 0:10:26]} Qa7 {[%emt 0:04:36]} 22. h4 {[%emt 0:06:27][%cal Bh2h4,Bh4h5][%mdl 32]} Rae8 {[%emt 0:02:52]} 23. h5 {[%emt 0:00:06]} Nd8 {[%emt 0:04:51] [#]} 24. f4 $1 {[%emt 0:03:42]} exf4 {[%emt 0:04:23]} 25. Rxf4 {[%emt 0:00:20] Hoping for Rcf1.} Be6 {[%emt 0:02:58] [#] And now ...Bxd5 would win.} 26. Rd1 {[%emt 0:06:56]} ({Better is} 26. Qf3 $1 $18) 26... Bxd5 $16 {[%emt 0:02:19]} 27. Rxd5 {[%emt 0:00:04] aiming for Qg4.} Ne6 {[%emt 0:00:28]} 28. Rf1 {[%emt 0:00:06] Strongly threatening Qg4.} c6 $2 {[%emt 0:01:13][%mdl 8192] A mistake that costs the game.} (28... Ng5 $16) 29. Rxd6 $18 {[%emt 0:02:20]} Qe7 {[%emt 0:00:52]} 30. Qg4 {[%emt 0:00:04] Threatens to win with Nf5+.} Ng5 $2 {[%emt 0:03:58]} (30... Qg5 31. Qf3 Rc8) 31. Rxc6 {[%emt 0:01:44] White is clearly winning.} Rd8 {[%emt 0:00:33]} 32. Qf4 {[%emt 0:01:29] Against Rd6} Ne6 {[%emt 0:02:01]} 33. Qe5+ {[%emt 0:00:22] Weighted Error Value: White=0.22 (precise) /Black=0.31} 1-0

[Event "44th Chess Olympiad Open 2022"]
[Site "Chennai"]
[Date "2022.08.08"]
[Round "10.27"]
[White "Sebenik, Matej"]
[Black "Greet, Andrew N"]
[Result "1/2-1/2"]
[ECO "A90"]
[WhiteElo "2512"]
[BlackElo "2392"]
[Annotator "TA"]
[PlyCount "135"]
[EventDate "2022.07.29"]
[EventType "team-tourn"]
[EventCountry "IND"]
[SourceTitle "playchess.com"]
[Source "ChessBase"]
[SourceQuality "1"]
[WhiteTeam "Slovenia"]
[BlackTeam "Scotland"]
[WhiteTeamCountry "SLO"]
[BlackTeamCountry "SCO"]
[TimeControl "40/5400+30:1800+30"]

{[%evp 9,135,27,42,37,28,35,42,0,0,0,0,0,0,0,0,0,-9,-5,0,-14,-18,-20,25,23,16,-6,16,12,10,24,29,19,28,20,32,9,22,14,58,42,57,33,29,30,68,43,51,30,85,15,15,39,60,60,114,88,90,85,96,89,77,82,82,86,95,28,28,28,27,31,31,26,27,29,29,26,51,47,98,59,75,79,76,8,8,8,10,13,24,14,16,0,0,0,0,0,0,0,0,0,8,0,0,0,0,0,0,0,0,0,0,0,0,0,0,0,0,0,0,0,0,0,0,0,0,0,0,0]} 1. d4 {[%emt 0:00:08]} e6 {[%emt 0:00:11]} 2. c4 {[%emt 0:00:19]} f5 {[%emt 0:00:08]} 3. g3 {[%emt 0:00:30]} Nf6 {[%emt 0:00:06]} 4. Bg2 {[%emt 0:00:15]} d5 {[%emt 0:00:08]} 5. Nh3 {[%emt 0:00:47]} Bd6 {[%emt 0:00:09]} 6. O-O {[%emt 0:00:57] A90: Dutch Defence: Miscellaneous and Modern Stonewall (with ...Bd6).} O-O {[%emt 0:00:11]} 7. Nd2 {[%emt 0:01:47]} Nc6 {[%emt 0:01:04]} 8. Nf3 {[%emt 0:01:08] White is slightly better.} dxc4 {[%emt 0:00:33]} 9. Qa4 {[%emt 0:01:34]} Nb4 {[%emt 0:00:17]} 10. Qb5 {[%emt 0:09:28]} Bd7 {[%emt 0:00:22]} 11. Qxc4 {[%emt 0:00:06]} Qe8 {[%emt 0:00:38] [#]} 12. Bf4 $146 {[%emt 0:13:49] Hoping for Bxd6.} ({Predecessor:} 12. Nf4 Bb5 13. Qb3 Nbd5 14. Ne5 Ba4 15. Qd3 Bb5 16. Qb3 Ba4 17. Qf3 Bb5 18. Nfd3 {1-0 (42) Goganov,A (2586)-Smirnov,A (2390) St Petersburg 2017}) 12... Bb5 {[%emt 0:00:58]} 13. Qb3 {[%emt 0:01:48] Bxd6 is the strong threat.} Ba4 {[%emt 0:16:33]} 14. Qc3 {[%emt 0:01:49]} (14. Qc4 $5 {[%cal Rf4d6]} Bb5 15. Qb3 $15) 14... Nbd5 {[%emt 0:16:03]} 15. Qc1 {[%emt 0:00:04]} Nxf4 {[%emt 0:01:01]} 16. Nxf4 {[%emt 0:00:15]} Bc6 {[%emt 0:01:10]} 17. Ng5 {[%emt 0:12:09]} Bxf4 {[%emt 0:06:01]} (17... Bd5 $5) 18. Qxf4 {[%emt 0:00:00]} Bxg2 {[%emt 0:02:01]} 19. Kxg2 {[%emt 0:00:05]} h6 {[%emt 0:00:12]} 20. Nf3 {[%emt 0:00:11][%cal Bg5f3,Bf3e5,Be5d3][%mdl 32]} Nd5 {[%emt 0:00:20]} 21. Qd2 {[%emt 0:02:33]} f4 {[%emt 0:01:50]} 22. Qd3 {[%emt 0:07:53]} a6 {[%emt 0:06:04]} 23. Rac1 {[%emt 0:05:34]} Rf6 {[%emt 0:03:24]} 24. Ne5 {[%emt 0:03:16]} Rd8 {[%emt 0:05:03]} 25. a3 {[%emt 0:12:01]} Rf5 {[%emt 0:01:52][%cal Of5e5]} 26. Qb3 {[%emt 0:03:01]} Qb5 {[%emt 0:02:35]} 27. Qxb5 {[%emt 0:00:34]} axb5 {[%emt 0:00:06]} 28. Nd3 {[%emt 0:00:31]} g5 {[%emt 0:07:57] [#]} (28... c6 $11 {keeps the balance.}) 29. Nc5 {[%emt 0:13:24]} (29. gxf4 $1 $16 gxf4 30. Kf3) 29... b6 $1 $11 {[%emt 0:01:11]} 30. Nd3 {[%emt 0:00:03]} Ra8 {[%emt 0:09:03]} 31. Rfe1 {[%emt 0:03:21]} Raf8 {[%emt 0:05:51]} (31... Ra4 $14) 32. Kg1 {[%emt 0:00:07]} h5 {[%emt 0:02:55]} 33. Rc6 {[%emt 0:02:11]} R5f6 {[%emt 0:01:42]} 34. e4 {[%emt 0:01:19]} fxe3 {[%emt 0:00:13]} 35. fxe3 {[%emt 0:00:03]} Rc8 {[%emt 0:01:41]} 36. Ne5 {[%emt 0:03:00]} Ne7 {[%emt 0:00:53]} 37. Nd7 {[%emt 0:00:53] White is more active.} ({White should try} 37. Rc3 $16) 37... Nxc6 {[%emt 0:02:12]} 38. Nxf6+ {[%emt 0:00:03][%mdl 4096] Endgame KRN-KRN} Kf7 {[%emt 0:00:12]} 39. Nxh5 {[%emt 0:00:03]} Na5 {[%emt 0:01:16]} 40. g4 {[%emt 0:01:24]} Nc4 {[%emt 0:01:11]} 41. Re2 {[%emt 0:07:30]} Rd8 {[%emt 0:08:43]} 42. Ng3 {[%emt 0:00:00]} Kg6 {[%emt 0:02:06]} 43. Kf2 {[%emt 0:03:02]} c5 {[%emt 0:03:07]} (43... e5 $14) 44. h3 {[%emt 0:00:00]} Rh8 {[%emt 0:08:26]} 45. Kg2 {[%emt 0:00:00]} Rd8 {[%emt 0:09:39] [#]} 46. Ne4 {[%emt 0:06:08]} (46. dxc5 $1 $16 bxc5 47. Ne4) 46... cxd4 {[%emt 0:00:00]} 47. exd4 {[%emt 0:01:40]} Rxd4 {[%emt 0:00:00]} 48. Nc3 {[%emt 0:00:04][%csl LRb5,LRe6]} e5 {[%emt 0:00:00]} 49. Nxb5 {[%emt 0:08:26]} Rd3 {[%emt 0:00:00] The position is equal.} 50. Nc3 {[%emt 0:05:40]} Nxb2 {[%emt 0:00:00][%mdl 64] Remove Defender} 51. Rxb2 {[%emt 0:03:48]} Rxc3 {[%emt 0:00:00]} 52. Rxb6+ {[%emt 0:00:05] KR-KR} Kf7 {[%emt 0:00:10]} 53. Ra6 {[%emt 0:01:08]} e4 {[%emt 0:00:37]} 54. a4 {[%emt 0:00:48]} Rc2+ {[%emt 0:01:02]} 55. Kg3 {[%emt 0:00:31]} Rc3+ {[%emt 0:00:22]} 56. Kf2 {[%emt 0:00:21]} Rxh3 {[%emt 0:00:49]} 57. Ra5 {[%emt 0:00:06]} Ra3 {[%emt 0:01:14]} 58. Rf5+ {[%emt 0:00:03]} Kg6 {[%emt 0:00:53]} 59. a5 {[%emt 0:00:04]} Rb3 {[%emt 0:05:38]} 60. Rc5 {[%emt 0:00:21]} Ra3 {[%emt 0:00:20]} 61. Rc6+ $1 {[%emt 0:01:18]} Kg7 {[%emt 0:00:12]} 62. a6 {[%emt 0:00:17]} Kf7 {[%emt 0:01:06]} 63. Ke2 {[%emt 0:01:04]} Kg7 {[%emt 0:00:25]} 64. Kd2 {[%emt 0:00:16]} Kf7 {[%emt 0:00:30]} 65. Kc2 {[%emt 0:00:31]} e3 {[%emt 0:00:36]} 66. Kd1 {[%emt 0:01:16]} Ra2 {[%emt 0:00:19]} 67. Ke1 {[%emt 0:00:03]} Kg7 {[%emt 0:00:15]} 68. Rb6 {[%emt 0:00:19] Weighted Error Value: White=0.12 (very precise) /Black=0.07 (flawless)} 1/2-1/2

[Event "44th Chess Olympiad Open 2022"]
[Site "Chennai"]
[Date "2022.08.08"]
[Round "10.27"]
[White "Gourlay, Iain"]
[Black "Subelj, Jan"]
[Result "0-1"]
[ECO "D11"]
[WhiteElo "2321"]
[BlackElo "2498"]
[Annotator "TA"]
[PlyCount "94"]
[EventDate "2022.07.29"]
[EventType "team-tourn"]
[EventCountry "IND"]
[SourceTitle "playchess.com"]
[Source "ChessBase"]
[SourceQuality "1"]
[WhiteTeam "Scotland"]
[BlackTeam "Slovenia"]
[WhiteTeamCountry "SCO"]
[BlackTeamCountry "SLO"]
[TimeControl "40/5400+30:1800+30"]

{[%evp 11,94,0,0,0,11,11,14,22,38,4,14,20,17,0,0,0,6,0,0,0,0,-33,-32,-95,-94,-73,-70,-88,-103,-108,-91,-154,-164,-180,-96,-311,-318,-300,-293,-320,-304,-268,-330,-337,-310,-318,-322,-319,-326,-354,-340,-368,-265,-475,-466,-456,-436,-428,-385,-367,-381,-466,-285,-519,-502,-473,-428,-412,-362,-818,-813,-810,-810,-2230,-2147,-29985,-29986,-29986,-29987,-29987,-29988,-29991,-29992,-29992,-29993]} 1. d4 {[%emt 0:00:05]} d5 {[%emt 0:00:31]} 2. Nf3 {[%emt 0:00:19]} Nf6 {[%emt 0:00:23]} 3. g3 {[%emt 0:00:15]} Bf5 {[%emt 0:00:40]} 4. Bg2 {[%emt 0:00:19]} e6 {[%emt 0:00:24]} 5. c4 {[%emt 0:00:40]} c6 {[%emt 0:00:22]} 6. Nc3 {[%emt 0:00:21]} h6 {[%emt 0:00:10]} 7. Qb3 {[%emt 0:00:43] Nowadays more popular than 7.0-0. D11: Slav Defence: 3 Nf3 sidelines and 3...Nf6 4 e3 Bg4.} Qb6 {[%emt 0:00:08]} 8. c5 {[%emt 0:00:22]} Qc7 {[%emt 0:00:33]} 9. Bf4 {[%emt 0:04:59] The position is equal.} Qc8 {[%emt 0:02:14]} 10. Nd2 {[%emt 0:01:59]} Be7 {[%emt 0:00:48]} 11. e4 {[%emt 0:02:27]} Bh7 {[%emt 0:04:15]} 12. O-O {[%emt 0:03:49]} O-O $1 {[%emt 0:00:00]} 13. Rfe1 {[%emt 0:04:01][%cal Re4d5]} Rd8 {[%emt 0:00:00]} 14. Rad1 {[%emt 0:03:35] [#]} b6 $146 {[%emt 0:05:13]} ({Predecessor:} 14... Nbd7 15. exd5 Nxd5 16. Nxd5 cxd5 17. Rc1 Bf6 18. Qc3 a5 19. Nf1 Qc6 20. Ne3 Qa4 {1-0 (40) Rakhmanov,A (2627)-Usmanov,V (2477) Yaroslavl 2018}) 15. cxb6 {[%emt 0:19:57]} axb6 {[%emt 0:00:20]} 16. Qxb6 {[%emt 0:13:19]} g5 {[%emt 0:00:09]} 17. Be3 {[%emt 0:05:16]} (17. Qc7 $15 Nbd7 18. Qxc8 Rdxc8 19. Be3 (19. Be5 Nxe5 20. dxe5 Nd7 $15)) 17... Na6 $1 $17 {[%emt 0:00:44][%mdl 1024] Black has strong compensation.} 18. Qb3 {[%emt 0:04:58]} Rb8 {[%emt 0:00:08]} 19. Qc2 {[%emt 0:02:57]} Nb4 $1 {[%emt 0:00:04]} 20. Qb1 {[%emt 0:01:38] [#]} c5 $1 {[%emt 0:00:33][%cal Oe6e5,Bc6c5,Bc5c4][%mdl 32] Black is more active.} 21. Nb3 {[%emt 0:03:02]} (21. a4 $142) 21... c4 $36 {[%emt 0:12:23][%mdl 2048] White is under strong pressure.} 22. Nc1 {[%emt 0:01:25]} Qb7 {[%emt 0:05:13]} (22... dxe4 $19 23. a3 Nd3 24. Nxd3 exd3) 23. f4 $2 {[%emt 0:09:12] This costs White the game.} (23. a3 $17 Nd3 24. Nxd3 cxd3 25. Qxd3) 23... Nxe4 $19 {[%emt 0:02:05]} 24. Nxe4 {[%emt 0:00:27]} Bxe4 {[%emt 0:00:11]} ({Not} 24... dxe4 25. fxg5 hxg5 26. Ne2 $19) 25. Bxe4 {[%emt 0:00:08]} dxe4 {[%emt 0:00:06]} 26. fxg5 {[%emt 0:01:43]} hxg5 {[%emt 0:00:12]} 27. a3 {[%emt 0:01:50] [#]} Nd3 {[%emt 0:00:12]} 28. Nxd3 {[%emt 0:00:10]} cxd3 {[%emt 0:00:31]} ({Wrong is} 28... exd3 $2 29. Qc1 $19) 29. b4 {[%emt 0:02:19]} Bf6 {[%emt 0:02:03]} 30. Qb2 {[%emt 0:01:55]} Qd5 {[%emt 0:00:15][%cal Rf6d4]} 31. Rf1 {[%emt 0:05:25]} Bg7 {[%emt 0:02:00] Threatens to win with ...f5.} 32. Rc1 $2 {[%emt 0:02:25]} (32. g4 {was worth a try.}) 32... Bxd4 {[%emt 0:01:10]} 33. Bxd4 {[%emt 0:02:26]} Qxd4+ {[%emt 0:00:08]} 34. Qxd4 {[%emt 0:00:04]} Rxd4 {[%emt 0:00:07][%mdl 4096] Endgame KRR-KRR} 35. Kf2 {[%emt 0:00:21]} d2 {[%emt 0:00:10]} 36. Ra1 {[%emt 0:01:54]} Rbd8 {[%emt 0:02:29]} 37. Ke2 {[%emt 0:00:18]} (37. Rfd1 {was the only defense.}) 37... f5 {[%emt 0:00:06][%cal Of5f4] aiming for ...f4!} 38. Rad1 {[%emt 0:01:21]} Rd3 {[%emt 0:00:33]} 39. a4 {[%emt 0:01:01]} R3d4 {[%emt 0:00:13]} 40. Rb1 $2 {[%emt 0:00:33]} (40. a5 Rxb4 41. Ra1) 40... f4 {[%emt 0:00:20]} 41. gxf4 {[%emt 0:01:14]} gxf4 {[%emt 0:00:06][%cal Bg5f4,Bf4f3,Bf3f2][%mdl 32]} 42. Rfd1 {[%emt 0:02:16]} Rd3 {[%emt 0:00:23] ( -> ...f3+)} 43. b5 {[%emt 0:02:05]} f3+ {[%emt 0:00:06] Black mates.} 44. Kf2 {[%emt 0:00:24]} Rf8 {[%emt 0:00:06]} 45. Rg1+ {[%emt 0:06:32]} Kh8 {[%emt 0:00:09]} 46. b6 {[%emt 0:00:12]} e3+ {[%emt 0:00:06]} 47. Kg3 {[%emt 0:00:04]} f2 {[%emt 0:00:07] Weighted Error Value: White=0.64/Black=0.08 (flawless)} 0-1

[Event "44th Chess Olympiad Open 2022"]
[Site "Chennai"]
[Date "2022.08.08"]
[Round "10.28"]
[White "Henriquez Villagra, Cristobal"]
[Black "Khusenkhojaev, Muhammad"]
[Result "1-0"]
[ECO "A34"]
[WhiteElo "2620"]
[BlackElo "2397"]
[Annotator "TA"]
[PlyCount "65"]
[EventDate "2022.07.29"]
[EventType "team-tourn"]
[EventCountry "IND"]
[SourceTitle "playchess.com"]
[Source "ChessBase"]
[SourceQuality "1"]
[WhiteTeam "Chile"]
[BlackTeam "Tajikistan"]
[WhiteTeamCountry "CHI"]
[BlackTeamCountry "TJK"]
[TimeControl "40/5400+30:1800+30"]

{[%evp 13,65,39,48,43,47,30,47,36,101,64,121,129,115,129,131,134,159,148,170,173,233,202,194,192,256,252,406,376,361,158,154,139,146,143,139,133,146,148,134,145,206,206,229,223,307,303,29991,29992,29994,29995,29996,29997,29997,29998]} 1. c4 {[%emt 0:00:04]} Nf6 {[%emt 0:00:23]} 2. Nc3 {[%emt 0:00:05]} d5 {[%emt 0:00:07]} 3. cxd5 {[%emt 0:00:06]} Nxd5 {[%emt 0:00:05]} 4. Nf3 {[%emt 0:00:10]} c5 {[%emt 0:02:50]} 5. e4 {[%emt 0:00:11]} Nxc3 {[%emt 0:00:10]} 6. dxc3 {[%emt 0:00:06]} Qxd1+ {[%emt 0:00:13]} 7. Kxd1 {[%emt 0:00:06]} Nc6 {[%emt 0:02:26]} 8. Kc2 {[%emt 0:03:47] A34: Symmetrical English: 2 Nc3, lines with ...d5.} e6 {[%emt 0:13:20]} 9. a4 {[%emt 0:12:19] [#]} Bd6 $146 {[%emt 0:05:29]} ({Predecessor:} 9... Bd7 10. Be3 Be7 11. Be2 O-O 12. Rhd1 Rfd8 13. a5 Rac8 14. b3 Be8 15. Rxd8 Rxd8 {½-½ (52) Banusz,T (2451)-Varadi,V (2381) Hungary 2006}) 10. Bb5 {[%emt 0:00:29] White is slightly better.} e5 {[%emt 0:17:54]} (10... Bd7 $14) 11. Be3 {[%emt 0:07:13]} f6 {[%emt 0:10:50]} (11... Ke7 $1 $14) 12. Rhd1 $16 {[%emt 0:02:10]} Be7 {[%emt 0:00:43] [#]} 13. Nd2 $1 $36 {[%emt 0:07:28][%mdl 2048] Keeping Black busy. 0x0.001eba0ac49ddp-1022s more active pieces.} Bd7 {[%emt 0:08:28]} 14. Nb3 {[%emt 0:01:25]} a6 {[%emt 0:01:35]} 15. Be2 {[%emt 0:00:47]} b6 {[%emt 0:03:32]} 16. a5 {[%emt 0:00:13]} bxa5 {[%emt 0:01:17]} (16... c4 $142) 17. Nxc5 {[%emt 0:01:33]} Bxc5 {[%emt 0:00:14]} 18. Bxc5 {[%emt 0:00:05]} a4 {[%emt 0:00:02]} (18... Nd8 $142 19. Be3 (19. Rxa5 Nb7 $14) 19... Bc6) 19. Rd6 $18 {[%emt 0:03:17] And now Rad1 would win.} Na5 $2 {[%emt 0:04:29]} (19... Nd8 20. Rb6 (20. Rxa6 Rxa6 21. Bxa6 Ne6 $18) (20. Bxa6 Bc6 $18) 20... Rc8) 20. Rad1 {[%emt 0:04:39]} Bc6 {[%emt 0:00:22]} 21. f3 {[%emt 0:00:37]} (21. Bh5+ $18 {is the precise move to win.} g6 22. Bf3) 21... Kf7 $16 {[%emt 0:00:08]} 22. Bb4 {[%emt 0:00:05] A strong pair of Bishops.} Bb5 {[%emt 0:07:25]} 23. Bxb5 {[%emt 0:07:22]} ({Don't do} 23. Bxa5 $6 Bxe2 24. Ra1 Bb5 $14) 23... axb5 {[%emt 0:00:09]} 24. Bxa5 {[%emt 0:00:10]} Rxa5 {[%emt 0:00:00][%mdl 4096] Endgame KRR-KRR} 25. Rd7+ {[%emt 0:00:03]} Kg6 {[%emt 0:00:00][%cal Ob5b4]} 26. Rb7 {[%emt 0:00:34]} Kh6 {[%emt 0:00:00]} (26... h5 $16 {keeps fighting.} 27. Rdd7 Rg8) 27. Kb1 $18 {[%emt 0:04:09]} g6 {[%emt 0:03:04]} 28. Ka2 {[%emt 0:03:21]} f5 {[%emt 0:06:18]} 29. exf5 {[%emt 0:00:00]} gxf5 $2 {[%emt 0:00:04] [#]} (29... Ra6 $18 30. Rxb5 gxf5 31. Rxe5 Kg6) 30. Rd6+ $1 {[%emt 0:00:00] White mates.} Kg5 {[%emt 0:00:17]} 31. g3 {[%emt 0:00:00][%cal Bg2g3,Bg3g4][%mdl 32]} a3 {[%emt 0:01:29]} 32. Rg7+ {[%emt 0:00:00]} Kh5 {[%emt 0:00:11]} 33. g4+ {[%emt 0:00:00] Weighted Error Value: White=0.10 (very precise) /Black=0.57} 1-0